bitfinex-derivatives/quotes_SOLF0:USTF0_20240923
["timestamp","ask_amount","ask_price","bid_price","bid_amount"]
[1727118309503,13.086,143.84,143.81,3.4765]
[1727118313710,9.61,143.82,143.81,3.4765]
[1727118314114,9.61,143.82,143.76,1.3427]
[1727118314415,9.61,143.78,143.74,2.8502]
[1727118314613,9.61,143.8,143.75,9.61]
[1727118314817,13.05302563,143.8,143.75,9.61]
[1727118315117,13.0869,143.8,143.77,3.4775]
[1727118317019,9.61,143.78,143.74,2.8502]
[1727118317218,9.61,143.78,143.73,91.37108455]
[1727118317519,9.61,143.79,143.73,91.37108455]
[1727118317723,13.0871,143.79,143.76,3.4777]
[1727118321519,9.61,143.78,143.76,3.4777]
[1727118321718,9.61,143.77,143.75,3.4779]
[1727118323113,3.49742554,143.8,143.7,2.8171]
[1727118323114,9.61,143.76,143.7,2.8171]
[1727118323318,9.61,143.73,143.7,2.8171]
[1727118323621,9.61,143.73,143.71,3.479]
[1727118324329,9.61,143.73,143.72,3.4788]
[1727118324521,9.61,143.74,143.72,3.4788]
[1727118325124,13.0883,143.74,143.72,3.4788]
[1727118325320,3.47521975,143.76,143.72,3.4788]
[1727118325521,9.61,143.73,143.72,3.4788]
[1727118325718,9.61,143.73,143.71,3.4789]
[1727118326427,9.61,143.72,143.66,4.0907]
[1727118326619,9.61,143.71,143.7,3.4791]
[1727118328325,9.61,143.71,143.69,3.4794]
[1727118329126,9.61,143.73,143.68,9.61]
[1727118331133,9.61,143.72,143.67,9.61]
[1727118331631,9.61,143.72,143.71,3.479]
[1727118331934,9.61,143.72,143.66,2.7665]
[1727118332131,9.61,143.72,143.67,9.61]
[1727118332735,9.61,143.73,143.68,9.61]
[1727118333031,9.61,143.75,143.69,9.61]
[1727118333234,13.0883,143.74,143.71,3.4789]
[1727118333428,9.61,143.74,143.69,9.61]
[1727118335130,9.61,143.73,143.71,3.4789]
[1727118335737,9.61,143.72,143.7,3.4792]
[1727118336129,9.61,143.71,143.66,2.7665]
[1727118336330,9.61,143.69,143.66,2.7665]
[1727118336633,9.61,143.7,143.69,3.4793]
[1727118337826,9.61,143.72,143.68,9.61]
[1727118338028,4.80988277,143.79,143.66,2.7665]
[1727118338029,4.80988277,143.79,143.7,9.61]
[1727118338233,9.61,143.75,143.7,9.61]
[1727118338740,4.80988277,143.79,143.66,2.7665]
[1727118338741,4.80988277,143.79,143.72,9.61]
[1727118338931,9.61,143.77,143.72,9.61]
[1727118339133,9.61,143.74,143.72,3.4787]
[1727118339339,9.61,143.74,143.71,9.61]
[1727118339639,9.61,143.74,143.72,3.4788]
[1727118340936,9.61,143.73,143.71,3.4789]
[1727118341532,9.61,143.72,143.71,3.4789]
[1727118343441,9.61,143.73,143.72,3.4787]
[1727118344645,9.61,143.75,143.71,9.61]
[1727118345135,9.61,143.77,143.72,9.61]
[1727118345438,9.61,143.77,143.75,3.4778]
[1727118345635,9.61,143.78,143.73,9.61]
[1727118345942,9.61,143.79,143.77,3.4776]
[1727118346134,9.61,143.79,143.74,9.61]
[1727118346737,13.0872,143.79,143.76,3.4776]
[1727118347338,13.0872,143.79,143.74,9.61]
[1727118347640,13.0872,143.79,143.77,3.4776]
[1727118348035,9.61,143.78,143.76,3.4777]
[1727118348544,22.01045941,143.8,143.76,3.4777]
[1727118348943,18.53355941,143.8,143.76,3.4777]
[1727118349940,3.4772,143.79,143.76,3.4777]
[1727118350936,18.53355941,143.8,143.71,17.9153]
[1727118351746,22.01065941,143.8,143.76,3.4777]
[1727118352842,18.53355941,143.8,143.75,3.4778]
[1727118353444,3.4772,143.79,143.75,3.4778]
[1727118353840,15.04,143.78,143.71,2.8753]
[1727118354041,15.04,143.76,143.71,2.8753]
[1727118354243,15.04,143.76,143.71,1.4561]
[1727118354445,18.518,143.76,143.73,3.4785]
[1727118354748,15.04,143.76,143.71,1.4561]
[1727118355254,18.53355941,143.8,143.71,1.4561]
[1727118355255,15.04,143.78,143.71,1.4561]
[1727118355846,3.4776,143.77,143.71,1.4561]
[1727118356742,3.4776,143.77,143.74,3.4781]
[1727118358549,3.4776,143.77,143.75,3.478]
[1727118359343,18.5173,143.78,143.75,3.478]
[1727118360655,18.5173,143.78,143.76,3.4778]
[1727118360948,3.4776,143.77,143.71,1.4561]
[1727118361448,15.04,143.78,143.75,3.478]
[1727118361956,15.04,143.79,143.71,1.4561]
[1727118362552,18.5172,143.79,143.76,3.4777]
[1727118362944,15.04,143.79,143.77,3.4775]
[1727118364255,6.95347581,143.8,143.77,3.4775]
[1727118364453,18.5167,143.81,143.78,3.4773]
[1727118364651,15.04,143.81,143.78,3.4773]
[1727118365153,18.5167,143.81,143.78,3.4773]
[1727118365453,18.5167,143.81,143.72,15.04]
[1727118365454,15.04,143.81,143.72,15.04]
[1727118365846,15.04,143.79,143.71,16.4961]
[1727118366046,15.04,143.81,143.71,16.4961]
[1727118366550,3.4769,143.8,143.77,3.4775]
[1727118370052,3.4771,143.79,143.76,3.4776]
[1727118370253,15.04,143.79,143.71,16.4961]
[1727118370460,9.63,143.76,143.71,11.0861]
[1727118371255,9.63,143.77,143.75,3.4778]
[1727118371555,9.63,143.77,143.72,9.63]
[1727118371749,9.63,143.78,143.74,9.63]
[1727118371951,9.63,143.78,143.76,3.4776]
[1727118372653,9.63,143.79,143.75,9.63]
[1727118372958,1.3877,143.86,143.77,9.63]
[1727118373157,9.63,143.82,143.77,9.63]
[1727118373859,9.63,143.84,143.8,9.63]
[1727118374163,9.63,143.84,143.82,3.4762]
[1727118375449,9.63,143.84,143.77,4.2184]
[1727118375450,9.63,143.83,143.77,13.8484]
[1727118375657,9.63,143.81,143.77,13.8484]
[1727118376054,9.63,143.82,143.78,9.63]
[1727118376361,3.476,143.84,143.77,4.2184]
[1727118376658,3.476,143.84,143.81,3.4764]
[1727118377853,15.03,143.85,143.82,3.4763]
[1727118377854,18.5057,143.85,143.82,3.4763]
[1727118378160,15.03,143.87,143.78,15.03]
[1727118378356,18.5053,143.87,143.78,15.03]
[1727118378951,3.4754,143.86,143.83,3.476]
[1727118379148,15.03,143.87,143.78,15.03]
[1727118379457,15.03,143.87,143.77,4.2184]
[1727118379655,15.03,143.83,143.77,4.2184]
[1727118380557,18.5061,143.83,143.79,3.4769]
[1727118380958,15.03,143.83,143.79,3.4769]
[1727118381160,3.4769,143.8,143.76,3.4777]
[1727118381356,15.03,143.79,143.71,4.1464]
[1727118381760,18.5072,143.79,143.75,3.4779]
[1727118383267,3.4774,143.78,143.75,3.4779]
[1727118383459,3.4774,143.78,143.74,3.4782]
[1727118383759,3.50250208,143.81,143.71,4.1464]
[1727118383760,15.03,143.77,143.71,4.1464]
[1727118383967,15.03,143.77,143.73,3.4784]
[1727118384861,15.03,143.77,143.74,3.4781]
[1727118385069,3.50250208,143.81,143.71,4.1464]
[1727118385261,15.03,143.76,143.71,4.1464]
[1727118385564,15.03,143.76,143.73,3.4784]
[1727118385766,15.03,143.76,143.71,4.1464]
[1727118385966,18.508,143.76,143.71,4.1464]
[1727118386162,18.508,143.76,143.73,3.4785]
[1727118387871,15.03,143.78,143.71,4.1464]
[1727118388567,18.5074,143.78,143.75,3.478]
[1727118389272,15.03,143.78,143.76,3.4778]
[1727118389672,15.03,143.78,143.71,4.1464]
[1727118389878,18.5074,143.78,143.75,3.478]
[1727118390771,15.03,143.78,143.75,3.478]
[1727118392475,18.5074,143.78,143.75,3.478]
[1727118392674,18.5074,143.78,143.71,4.1464]
[1727118393071,3.4776,143.77,143.71,4.1464]
[1727118393568,3.4776,143.77,143.74,3.4781]
[1727118394173,18.5074,143.78,143.75,3.478]
[1727118394871,15.03,143.78,143.71,4.1464]
[1727118395873,3.4777,143.77,143.74,3.4781]
[1727118397071,15.03,143.78,143.75,3.478]
[1727118397072,18.5073,143.78,143.75,3.478]
[1727118397373,18.5073,143.78,143.71,4.1464]
[1727118397762,18.5073,143.78,143.75,3.4779]
[1727118399170,18.5073,143.78,143.71,19.1764]
[1727118399171,15.03,143.78,143.71,19.1764]
[1727118399777,15.03,143.8,143.73,15.03]
[1727118400476,15.03,143.8,143.78,3.4772]
[1727118400973,15.03,143.8,143.73,15.03]
[1727118400974,18.5071,143.8,143.77,3.4775]
[1727118401376,15.03,143.8,143.77,3.4775]
[1727118401573,18.5069,143.8,143.78,3.4773]
[1727118401767,15.03,143.8,143.78,3.4773]
[1727118402567,18.5068,143.8,143.77,3.4775]
[1727118403772,3.4772,143.79,143.76,3.4776]
[1727118406582,18.5069,143.8,143.73,15.03]
[1727118406877,3.4769,143.8,143.73,15.03]
[1727118407078,3.4769,143.8,143.77,3.4773]
[1727118407477,3.40363332,143.81,143.77,3.4773]
[1727118407671,15.03,143.82,143.77,3.4773]
[1727118408072,3.477,143.8,143.77,3.4773]
[1727118408267,6.91506541,143.8,143.77,3.4773]
[1727118408774,3.4771,143.79,143.77,3.4773]
[1727118409383,3.4769,143.8,143.77,3.4773]
[1727118410268,9.62,143.78,143.77,3.4773]
[1727118412182,9.62,143.78,143.71,4.1464]
[1727118412183,13.0974,143.78,143.76,3.4777]
[1727118412385,9.62,143.77,143.76,3.4777]
[1727118412980,9.62,143.77,143.75,3.4779]
[1727118413183,9.62,143.76,143.71,13.7664]
[1727118413483,9.62,143.73,143.68,9.62]
[1727118414382,9.62,143.73,143.67,2.8824]
[1727118414383,3.4785,143.74,143.72,3.4788]
[1727118416583,18.5281,143.75,143.72,3.4788]
[1727118418079,15.05,143.75,143.67,2.8824]
[1727118418280,15.05,143.77,143.68,25.51285242]
[1727118418485,15.05,143.77,143.68,18.57533307]
[1727118418681,3.4779,143.76,143.73,3.4784]
[1727118419288,3.4779,143.76,143.74,3.4782]
[1727118419482,3.4779,143.76,143.69,6.93669679]
[1727118419684,3.4779,143.76,143.68,18.57533307]
[1727118419880,3.4779,143.76,143.73,3.4783]
[1727118420077,3.4778,143.76,143.73,3.4783]
[1727118420992,18.5840333,143.79,143.7,15.05]
[1727118421181,18.5840333,143.79,143.71,1.4454]
[1727118421376,18.5840333,143.79,143.75,3.4778]
[1727118421582,18.5840333,143.79,143.71,1.4454]
[1727118421783,18.5840333,143.79,143.72,1.3273]
[1727118422285,15.05,143.77,143.72,1.3273]
[1727118423179,15.05,143.77,143.71,1.4454]
[1727118424086,15.05,143.77,143.68,16.4686]
[1727118424290,15.05,143.75,143.68,1.4186]
[1727118424886,15.05,143.77,143.68,1.4186]
[1727118425088,15.05,143.77,143.68,19.87502482]
[1727118425588,3.4779,143.76,143.73,3.4783]
[1727118425795,15.05,143.79,143.7,15.05]
[1727118425988,18.5405332,143.79,143.71,1.4165]
[1727118426187,3.4778,143.76,143.74,3.4783]
[1727118426782,3.4776,143.77,143.74,3.4783]
[1727118427396,18.5405332,143.79,143.71,1.4165]
[1727118427693,18.57742586,143.8,143.72,16.4595]
[1727118427894,15.05,143.8,143.73,1.4086]
[1727118428093,3.4772,143.79,143.76,3.4777]
[1727118429695,3.4773,143.78,143.76,3.4777]
[1727118429896,15.05,143.78,143.73,1.4086]
[1727118430097,15.05,143.78,143.72,1.4095]
[1727118430300,3.4777,143.77,143.72,1.4095]
[1727118430494,3.4777,143.77,143.74,3.4781]
[1727118431497,3.4777,143.77,143.72,1.4095]
[1727118431498,18.55918708,143.8,143.72,1.4095]
[1727118431699,15.05,143.8,143.72,1.4095]
[1727118432405,3.4773,143.78,143.75,3.4779]
[1727118432996,3.4777,143.77,143.74,3.4781]
[1727118433401,3.4777,143.77,143.72,1.4095]
[1727118434201,3.4777,143.77,143.74,3.4781]
[1727118434404,15.05,143.78,143.71,1.4165]
[1727118434592,3.50838442,143.81,143.69,1.3925]
[1727118434593,15.05,143.76,143.69,1.3925]
[1727118434793,15.05,143.76,143.72,3.4787]
[1727118435301,3.4782,143.75,143.72,3.4787]
[1727118435597,3.4782,143.75,143.69,1.3925]
[1727118435598,3.4782,143.75,143.73,3.4785]
[1727118436103,3.4782,143.75,143.72,3.4787]
[1727118436901,15.05,143.75,143.69,1.3925]
[1727118437299,3.4784,143.74,143.71,3.4789]
[1727118438710,3.4786,143.73,143.71,3.4789]
[1727118438909,3.4786,143.73,143.7,3.4791]
[1727118438910,18.5286,143.73,143.7,3.4791]
[1727118439100,18.5286,143.73,143.68,2.6772]
[1727118439101,15.05,143.73,143.68,1.3531]
[1727118439305,3.479,143.71,143.68,1.3531]
[1727118439503,3.479,143.71,143.68,4.8326]
[1727118439803,3.4788,143.72,143.65,1.3567]
[1727118440102,3.4788,143.72,143.69,3.4793]
[1727118440310,18.60770569,143.73,143.65,2.7977]
[1727118440311,3.4792,143.71,143.65,2.7977]
[1727118440508,18.60770569,143.73,143.65,17.8477]
[1727118440801,15.05,143.73,143.71,3.4788]
[1727118441003,18.5285,143.73,143.66,1.4345]
[1727118441408,18.5285,143.73,143.7,3.4792]
[1727118441611,3.4785,143.73,143.7,3.4792]
[1727118442202,18.5284,143.74,143.7,3.4792]
[1727118442406,18.5284,143.74,143.71,3.4789]
[1727118443701,15.05,143.74,143.67,15.05]
[1727118443907,15.05,143.78,143.69,15.05]
[1727118444216,15.05,143.78,143.7,2.8387]
[1727118444401,3.4777,143.77,143.73,3.4784]
[1727118445107,15.05,143.78,143.73,3.4784]
[1727118445915,18.5279,143.76,143.73,3.4784]
[1727118446108,15.05,143.76,143.72,3.4787]
[1727118446608,15.05,143.74,143.7,2.8387]
[1727118446805,15.05,143.74,143.71,3.4788]
[1727118447114,18.5284,143.74,143.71,3.4788]
[1727118450417,18.5284,143.74,143.72,3.4788]
[1727118450610,15.05,143.8,143.72,3.4788]
[1727118450611,3.4782,143.75,143.72,3.4788]
[1727118451007,15.05,143.76,143.72,3.4788]
[1727118451217,15.05,143.78,143.7,2.8387]
[1727118451610,3.4778,143.76,143.73,3.4784]
[1727118451909,15.05,143.78,143.7,2.8387]
[1727118452118,3.4777,143.77,143.7,2.8387]
[1727118452413,9.63,143.76,143.71,9.63]
[1727118452718,9.63,143.76,143.74,3.4782]
[1727118452916,13.1078,143.76,143.74,3.4782]
[1727118453218,13.1078,143.76,143.71,9.63]
[1727118453915,13.1078,143.76,143.73,3.4784]
[1727118454113,13.1078,143.76,143.71,9.63]
[1727118454314,3.4778,143.76,143.7,2.8387]
[1727118454620,3.4778,143.76,143.73,3.4784]
[1727118456415,3.4778,143.76,143.7,2.8387]
[1727118456416,18.5177,143.77,143.74,3.4783]
[1727118456618,15.04,143.77,143.7,2.8387]
[1727118456829,15.04,143.79,143.7,17.8787]
[1727118457115,3.4775,143.78,143.75,3.4779]
[1727118457820,18.55221549,143.79,143.71,1.3314]
[1727118458519,18.55221549,143.79,143.73,3.4784]
[1727118458520,3.4778,143.76,143.73,3.4784]
[1727118459119,3.4777,143.77,143.74,3.4782]
[1727118460525,3.4775,143.78,143.71,1.3314]
[1727118461225,3.4775,143.78,143.75,3.478]
[1727118463918,18.5172,143.79,143.76,3.4776]
[1727118464122,3.4772,143.79,143.72,15.04]
[1727118464632,3.4772,143.79,143.76,3.4777]
[1727118465833,3.4774,143.78,143.75,3.4779]
[1727118469034,3.4776,143.77,143.75,3.4779]
[1727118469235,18.5474471,143.79,143.75,3.4779]
[1727118470531,3.4776,143.77,143.75,3.4779]
[1727118474732,3.4778,143.76,143.71,1.3314]
[1727118475135,3.4778,143.76,143.74,3.4783]
[1727118476338,13.1078,143.76,143.74,3.4783]
[1727118477845,13.1077,143.77,143.72,9.63]
[1727118478435,13.1077,143.77,143.75,3.478]
[1727118480945,6.91340354,143.78,143.76,3.4778]
[1727118481152,13.1074,143.78,143.76,3.4778]
[1727118482952,9.63,143.78,143.76,3.4778]
[1727118483247,2.8273,143.83,143.76,9.63]
[1727118483550,9.63,143.81,143.77,9.63]
[1727118484254,9.63,143.81,143.79,3.4768]
[1727118486157,13.1066,143.81,143.79,3.4768]
[1727118486346,9.63,143.8,143.78,3.4772]
[1727118487056,9.63,143.79,143.77,3.4775]
[1727118487459,13.72259914,143.85,143.78,9.63]
[1727118487759,9.63,143.82,143.78,9.63]
[1727118488146,9.63,143.82,143.81,3.4766]
[1727118488656,9.63,143.82,143.78,9.63]
[1727118489358,9.63,143.82,143.8,3.4767]
[1727118490955,83.52,143.91,143.81,9.63]
[1727118491149,9.63,143.87,143.82,9.63]
[1727118492472,9.63,143.88,143.83,9.63]
[1727118492958,9.63,143.88,143.86,3.4752]
[1727118493345,13.1049,143.88,143.85,3.4755]
[1727118495748,9.63,143.86,143.8,9.63]
[1727118495957,9.63,143.84,143.79,9.63]
[1727118497454,9.63,143.84,143.82,3.4763]
[1727118499461,3.4758,143.85,143.83,3.4761]
[1727118499462,9.63,143.85,143.83,3.4761]
[1727118503759,9.63,143.89,143.83,9.63]
[1727118503957,9.63,143.88,143.83,9.63]
[1727118504158,13.1051,143.88,143.84,3.4757]
[1727118504660,3.4752,143.87,143.84,3.4757]
[1727118505063,9.63,143.85,143.83,3.4759]
[1727118507556,9.63,143.84,143.79,9.63]
[1727118507764,9.63,143.8,143.78,81.74242844]
[1727118508567,13.1069,143.8,143.76,2.7636]
[1727118509164,13.1069,143.8,143.78,3.4772]
[1727118509466,13.1067,143.81,143.77,9.63]
[1727118510256,13.1067,143.81,143.78,3.4773]
[1727118511365,13.1067,143.81,143.79,3.477]
[1727118511366,9.63,143.81,143.79,3.477]
[1727118512756,9.63,143.83,143.79,9.63]
[1727118513163,9.63,143.83,143.81,3.4764]
[1727118513363,9.63,143.84,143.79,9.63]
[1727118513569,9.63,143.85,143.8,9.63]
[1727118513766,3.476,143.84,143.81,3.4765]
[1727118514062,9.63,143.84,143.81,3.4765]
[1727118514761,3.4761,143.83,143.81,3.4765]
[1727118516660,13.1059,143.84,143.81,3.4765]
[1727118520467,9.63,143.82,143.81,3.4765]
[1727118520666,9.63,143.82,143.8,3.4767]
[1727118521673,13.1064,143.82,143.79,3.477]
[1727118521971,9.63,143.8,143.76,2.7636]
[1727118522173,9.63,143.81,143.76,12.3936]
[1727118522679,9.63,143.81,143.79,3.4771]
[1727118523272,13.1068,143.81,143.78,3.4772]
[1727118523772,9.63,143.79,143.75,1.3588]
[1727118523978,9.63,143.78,143.75,1.3588]
[1727118524170,9.63,143.78,143.73,9.63]
[1727118525172,13.1075,143.78,143.76,3.4777]
[1727118526573,9.63,143.78,143.76,3.4777]
[1727118527188,13.1069,143.8,143.76,9.63]
[1727118528790,13.1069,143.8,143.78,3.4773]
[1727118530093,9.63,143.8,143.78,3.4773]
[1727118531200,9.63,143.8,143.79,3.4771]
[1727118533095,9.63,143.8,143.78,3.4772]
[1727118539997,9.63,143.8,143.79,3.4771]
[1727118541495,9.63,143.8,143.78,3.4772]
[1727118542501,9.63,143.8,143.79,3.4771]
[1727118542897,3.4765,143.82,143.8,3.4767]
[1727118542898,9.63,143.82,143.8,3.4767]
[1727118543103,9.63,143.84,143.79,9.63]
[1727118544505,7.01685927,143.85,143.8,9.63]
[1727118544506,9.63,143.85,143.8,9.63]
[1727118545505,13.1056,143.85,143.82,3.4762]
[1727118546413,9.63,143.85,143.84,3.4759]
[1727118547101,9.63,143.87,143.82,9.63]
[1727118547300,13.1745944,143.87,143.82,9.63]
[1727118547506,16.6498944,143.87,143.83,3.476]
[1727118549713,16.6498944,143.87,143.84,3.4758]
[1727118550607,3.4754,143.86,143.83,3.476]
[1727118552924,3.4754,143.86,143.84,3.4759]
[1727118553614,13.1054,143.86,143.83,3.476]
[1727118554116,13.1058,143.85,143.82,3.4762]
[1727118554416,9.63,143.83,143.76,9.63]
[1727118554621,9.63,143.83,143.75,1.3958]
[1727118554622,9.63,143.8,143.78,3.4771]
[1727118554807,9.63,143.8,143.76,9.63]
[1727118555116,9.63,143.82,143.79,3.4769]
[1727118555305,9.63,143.8,143.75,11.0258]
[1727118555707,9.63,143.8,143.78,3.4773]
[1727118556122,9.63,143.82,143.78,9.63]
[1727118556910,9.63,143.82,143.77,9.63]
[1727118557113,13.1064,143.82,143.79,3.4769]
[1727118559221,13.1064,143.82,143.8,3.4768]
[1727118559630,9.63,143.82,143.8,3.4768]
[1727118559920,13.18080298,143.83,143.8,3.4767]
[1727118560621,16.65690298,143.83,143.8,3.4767]
[1727118560810,9.63,143.83,143.81,3.4766]
[1727118561009,9.63,143.83,143.78,9.63]
[1727118561210,13.1062,143.83,143.78,9.63]
[1727118561516,9.63,143.82,143.79,3.4768]
[1727118561813,9.63,143.82,143.78,9.63]
[1727118562223,9.63,143.82,143.8,3.4767]
[1727118562423,13.1064,143.82,143.8,3.4767]
[1727118562819,13.1064,143.82,143.79,3.477]
[1727118564219,1.379,143.89,143.8,9.63]
[1727118564521,9.63,143.85,143.81,9.63]
[1727118564725,13.1058,143.85,143.83,3.4761]
[1727118564919,9.63,143.85,143.82,9.63]
[1727118565424,9.63,143.85,143.83,3.4761]
[1727118565921,9.63,143.85,143.84,3.4759]
[1727118567518,13.1054,143.86,143.84,3.4759]
[1727118567917,9.63,143.86,143.84,3.4759]
[1727118571018,3.475,143.88,143.85,3.4756]
[1727118571219,13.70461017,143.94,143.85,9.63]
[1727118571426,13.70461017,143.94,143.79,81.73722107]
[1727118571427,9.63,143.9,143.86,9.63]
[1727118571622,9.63,143.9,143.88,3.4748]
[1727118572229,9.63,143.9,143.87,3.475]
[1727118572527,13.1045,143.9,143.86,9.63]
[1727118573530,13.1045,143.9,143.87,3.4751]
[1727118573934,13.70461017,143.94,143.88,9.63]
[1727118573935,9.63,143.94,143.88,9.63]
[1727118574133,9.63,143.94,143.9,3.4743]
[1727118574931,3.4738,143.93,143.9,3.4743]
[1727118575237,9.63,143.92,143.89,3.4746]
[1727118576328,13.104,143.92,143.89,3.4746]
[1727118580130,13.69381709,143.96,143.83,6.952]
[1727118580131,13.1042,143.91,143.88,3.4748]
[1727118580431,9.63,143.91,143.88,3.4748]
[1727118581040,3.4745,143.9,143.87,3.475]
[1727118581939,3.4747,143.89,143.86,3.4753]
[1727118582237,9.63,143.87,143.82,9.63]
[1727118582634,9.63,143.87,143.85,3.4754]
[1727118584544,13.1051,143.87,143.85,3.4754]
[1727118584837,9.63,143.86,143.81,9.63]
[1727118585241,9.63,143.84,143.8,13.8702]
[1727118585538,9.63,143.84,143.82,3.4762]
[1727118586643,9.63,143.84,143.83,3.4761]
[1727118589439,9.63,143.84,143.82,3.4762]
[1727118591434,13.1057,143.85,143.82,3.4762]
[1727118594145,13.1057,143.85,143.83,3.476]
[1727118599149,9.63,143.85,143.83,3.476]
[1727118599538,9.63,143.85,143.82,3.4762]
[1727118599939,13.1057,143.85,143.82,3.4762]
[1727118600338,9.63,143.85,143.82,3.4762]
[1727118600544,3.4759,143.84,143.82,3.4762]
[1727118601341,13.1059,143.84,143.82,3.4762]
[1727118602547,9.63,143.84,143.82,3.4762]
[1727118603044,13.1062,143.83,143.81,3.4765]
[1727118603247,9.63,143.82,143.77,9.63]
[1727118603447,3.44960701,143.87,143.78,3.4772]
[1727118603448,9.63,143.8,143.78,3.4772]
[1727118603652,9.63,143.8,143.61,17.407]
[1727118603653,9.63,143.79,143.73,6.92252904]
[1727118603848,2.716,143.86,143.73,6.92252904]
[1727118603849,9.63,143.78,143.73,9.63]
[1727118604155,9.63,143.78,143.76,3.4776]
[1727118604341,9.63,143.78,143.73,9.63]
[1727118604649,9.63,143.79,143.74,9.63]
[1727118604853,6.27609192,143.86,143.77,9.63]
[1727118604854,9.63,143.81,143.77,9.63]
[1727118606755,13.1066,143.81,143.79,3.4769]
[1727118606944,6.27609192,143.86,143.71,1.3928]
[1727118606945,6.27609192,143.86,143.71,12.47285089]
[1727118607146,6.27609192,143.86,143.79,9.63]
[1727118607147,9.63,143.84,143.79,9.63]
[1727118607752,13.106,143.84,143.81,3.4764]
[1727118608148,13.106,143.84,143.79,9.63]
[1727118608350,13.106,143.84,143.81,3.4765]
[1727118608856,9.63,143.84,143.82,3.4763]
[1727118609258,9.63,143.84,143.79,9.63]
[1727118609756,13.1059,143.84,143.81,3.4765]
[1727118610355,9.63,143.84,143.82,3.4763]
[1727118610551,13.19009192,143.86,143.81,9.63]
[1727118610757,9.63,143.86,143.81,9.63]
[1727118611350,13.07778403,143.86,143.81,9.63]
[1727118611545,9.63,143.88,143.83,9.63]
[1727118612460,9.63,143.86,143.82,9.63]
[1727118612856,9.63,143.86,143.84,3.4757]
[1727118614060,9.63,143.86,143.85,3.4756]
[1727118615057,13.105,143.88,143.86,3.4753]
[1727118616558,2.8408,143.94,143.86,9.63]
[1727118616755,9.63,143.91,143.86,9.63]
[1727118616953,3.4745,143.9,143.86,9.63]
[1727118617154,9.63,143.89,143.87,3.475]
[1727118617852,9.63,143.88,143.86,3.4754]
[1727118618051,9.63,143.87,143.82,9.63]
[1727118618262,9.63,143.87,143.85,3.4755]
[1727118619565,13.1052,143.87,143.85,3.4755]
[1727118620354,3.475,143.88,143.85,3.4755]
[1727118620554,9.63,143.87,143.86,3.4754]
[1727118620956,9.63,143.87,143.83,9.63]
[1727118621156,13.1052,143.87,143.84,3.4758]
[1727118621562,13.1052,143.87,143.85,3.4756]
[1727118621754,9.63,143.87,143.83,9.63]
[1727118621960,13.17058001,143.89,143.84,9.63]
[1727118622159,9.63,143.89,143.84,9.63]
[1727118622360,13.1048,143.89,143.86,3.4752]